[Event "LEM Niedersachsen-A-Open 2025"]
[Site "Verden"]
[Date "2025.01.02"]
[Round "2.32"]
[White "Beckmann, Jonathan"]
[Black "Nuerenberg, Marius"]
[Result "1-0"]
[ECO "E35"]
[WhiteElo "1812"]
[BlackElo "1911"]
[Annotator "NA RC"]
[PlyCount "117"]
[EventDate "2024.12.27"]
[EventType "swiss"]
[EventCountry "GER"]
[SourceTitle "playchess.com"]
[Source "ChessBase"]
[SourceQuality "1"]
[TimeControl "40/5400+30:1800+30"]

1. d4 {[%emt 0:00:03]} Nf6 {[%emt 0:00:09]} 2. c4 {[%emt 0:00:04]} e6 {[%emt 0:00:06]} 3. Nc3 {[%emt 0:00:06]} Bb4 {[%emt 0:00:04]} 4. Qc2 {[%emt 0:00:06]} d5 {[%emt 0:00:11]} 5. cxd5 {[%emt 0:00:26]} exd5 {[%emt 0:00:07]} 6. Bg5 {[%emt 0:00:44]} h6 {[%emt 0:01:02]} 7. Bh4 {[%emt 0:00:11]} c5 {[%emt 0:01:23]} 8. Nf3 {[%emt 0:02:01]} g5 {[%emt 0:03:33]} 9. Bg3 {[%emt 0:00:14]} Ne4 {[%emt 0:00:15]} 10. dxc5 {[%emt 0:18:39]} Bf5 {[%emt 0:02:10]} 11. Qb3 {[%emt 0:02:58]} Na6 {[%emt 0:20:48]} 12. e3 {[%emt 0:06:16]} Bxc3+ {[%emt 0:03:21]} 13. bxc3 {[%emt 0:02:16]} Naxc5 {[%emt 0:00:10]} 14. Bb5+ {[%emt 0:11:00]} Kf8 {[%emt 0:09:32]} 15. Qa3 {[%emt 0:02:54]} Qe7 {[%emt 0:05:56]} 16. O-O {[%emt 0:04:36]} a6 {[%emt 0:00:46]} 17. Be2 {[%emt 0:02:28]} Nxg3 {[%emt 0:06:08]} 18. hxg3 {[%emt 0:00:16]} Kg7 {[%emt 0:05:29]} 19. Nd4 {[%emt 0:03:59]} Bg6 {[%emt 0:01:36]} 20. Bf3 {[%emt 0:04:38]} Rhd8 {[%emt 0:06:42]} 21. Rfd1 {[%emt 0:05:55]} Qc7 {[%emt 0:03:12]} 22. Rac1 {[%emt 0:13:33]} Nd3 {[%emt 0:01:36]} 23. Rc2 {[%emt 0:00:21]} Ne5 {[%emt 0:00:36]} 24. Rcc1 {[%emt 0:04:33]} Nc4 {[%emt 0:00:10]} 25. Qb3 {[%emt 0:01:23]} Rd6 {[%emt 0:01:15]} 26. Re1 {[%emt 0:02:32]} Rb6 {[%emt 0:02:19]} 27. Qd1 {[%emt 0:00:01]} Nb2 {[%emt 0:01:39]} 28. Qd2 {[%emt 0:01:38]} Nd3 {[%emt 0:00:17]} 29. Bxd5 {[%emt 0:00:41]} Rb2 {[%emt 0:04:16]} 30. Qd1 {[%emt 0:00:45]} Nxc1 {[%emt 0:03:17]} 31. Qxc1 {[%emt 0:00:11]} Rb1 {[%emt 0:00:39]} 32. Qd2 {[%emt 0:00:42]} Rxe1+ {[%emt 0:00:08]} 33. Qxe1 {[%emt 0:00:06]} Rd8 {[%emt 0:05:08]} 34. e4 {[%emt 0:02:33]} b5 {[%emt 0:03:51]} 35. a4 {[%emt 0:02:43]} bxa4 {[%emt 0:02:23]} 36. Qa1 {[%emt 0:00:35]} Kg8 {[%emt 0:00:45]} 37. Qxa4 {[%emt 0:03:48]} Qb6 {[%emt 0:08:01]} 38. Nc6 {[%emt 0:01:19]} Re8 {[%emt 0:00:00]} 39. Nb4 {[%emt 0:01:14]} Rc8 {[%emt 0:00:17]} 40. Nc6 {[%emt 0:00:14]} Re8 {[%emt 0:00:32]} 41. Nb4 {[%emt 0:31:14]} Kf8 {[%emt 0:11:08]} 42. Qd7 {[%emt 0:00:00]} a5 {[%emt 0:10:03]} 43. Nc6 {[%emt 0:00:00]} Qb1+ {[%emt 0:10:06]} 44. Kh2 {[%emt 0:00:00]} Rxe4 {[%emt 0:00:50]} 45. Bxe4 {[%emt 0:00:00]} Bxe4 {[%emt 0:00:07]} 46. Nxa5 {[%emt 0:00:00]} Qf1 {[%emt 0:00:43]} 47. Qd8+ {[%emt 0:00:00]} Kg7 {[%emt 0:00:14]} 48. Qd4+ {[%emt 0:00:00]} f6 {[%emt 0:00:13]} 49. Qxe4 {[%emt 0:00:00]} Qxf2 {[%emt 0:00:20]} 50. Nc4 {[%emt 0:00:00]} h5 {[%emt 0:01:04]} 51. Nd6 {[%emt 0:00:00]} Qc5 {[%emt 0:01:23]} 52. Qe7+ {[%emt 0:00:00]} Kg6 {[%emt 0:00:00]} 53. Qf7+ {[%emt 0:00:00]} Kh6 {[%emt 0:00:00]} 54. Qxf6+ {[%emt 0:00:00]} Kh7 {[%emt 0:00:05]} 55. Qf7+ {[%emt 0:00:00]} Kh8 {[%emt 0:00:11]} 56. Qxh5+ {[%emt 0:00:00]} Kg7 {[%emt 0:00:17]} 57. Qf7+ {[%emt 0:00:00]} Kh8 {[%emt 0:00:05]} 58. Qf8+ {[%emt 0:00:00]} Kh7 {[%emt 0:00:07]} 59. Qf5+ {[%emt 0:10:04]} 1-0

[Event "LEM Niedersachsen-A-Open 2025"]
[Site "Verden"]
[Date "2025.01.02"]
[Round "2.33"]
[White "Seer, Maurice"]
[Black "Rausch, Darius"]
[Result "1-0"]
[ECO "B15"]
[WhiteElo "1911"]
[BlackElo "1840"]
[Annotator "NA RC"]
[PlyCount "127"]
[EventDate "2024.12.27"]
[EventType "swiss"]
[EventCountry "GER"]
[SourceTitle "playchess.com"]
[Source "ChessBase"]
[SourceQuality "1"]
[TimeControl "40/5400+30:1800+30"]

1. e4 {[%emt 0:00:02]} c6 {[%emt 0:00:03]} 2. d4 {[%emt 0:00:07]} d5 {[%emt 0:00:03]} 3. Nd2 {[%emt 0:00:09]} dxe4 {[%emt 0:00:05]} 4. Nxe4 {[%emt 0:00:05]} Nf6 {[%emt 0:00:04]} 5. Nxf6+ {[%emt 0:00:34]} exf6 {[%emt 0:00:04]} 6. Nf3 {[%emt 0:00:51]} Bd6 {[%emt 0:00:07]} 7. Be2 {[%emt 0:01:06]} O-O {[%emt 0:00:05]} 8. O-O {[%emt 0:00:52]} Re8 {[%emt 0:00:19]} 9. h3 {[%emt 0:02:16]} Nd7 {[%emt 0:00:07]} 10. Re1 {[%emt 0:06:10]} Nf8 {[%emt 0:00:06]} 11. Be3 {[%emt 0:05:46]} Ng6 {[%emt 0:01:28]} 12. Qd2 {[%emt 0:03:58]} Be6 {[%emt 0:06:03]} 13. Bd3 {[%emt 0:06:37]} Bd5 {[%emt 0:07:32]} 14. Be2 {[%emt 0:12:16]} Bc7 {[%emt 0:01:05]} 15. g3 {[%emt 0:18:52]} f5 {[%emt 0:20:46]} 16. c4 {[%emt 0:05:52]} f4 {[%emt 0:08:43]} 17. Bxf4 {[%emt 0:11:26]} Bxf4 {[%emt 0:04:00]} 18. gxf4 {[%emt 0:03:20]} Be6 {[%emt 0:04:50]} 19. Ng5 {[%emt 0:04:22]} Qf6 {[%emt 0:02:50]} 20. Nxe6 {[%emt 0:02:53]} Rxe6 {[%emt 0:00:12]} 21. Bg4 {[%emt 0:04:33]} Rd6 {[%emt 0:00:13]} 22. Re4 {[%emt 0:01:19]} Rad8 {[%emt 0:01:08]} 23. Rd1 {[%emt 0:01:54]} Nh4 {[%emt 0:05:16]} 24. Qe3 {[%emt 0:01:09]} h6 {[%emt 0:06:08]} 25. Re8+ {[%emt 0:02:02]} Rxe8 {[%emt 0:00:04]} 26. Qxe8+ {[%emt 0:00:01]} Kh7 {[%emt 0:00:08]} 27. Qe4+ {[%emt 0:00:32]} Qg6 {[%emt 0:01:12]} 28. Qxg6+ {[%emt 0:01:24]} Nxg6 {[%emt 0:01:40]} 29. Bf5 {[%emt 0:01:27]} Rf6 {[%emt 0:00:42]} 30. Bxg6+ {[%emt 0:00:51]} Kxg6 {[%emt 0:00:18]} 31. d5 {[%emt 0:01:13]} Rd6 {[%emt 0:02:35]} 32. Kg2 {[%emt 0:00:29]} cxd5 {[%emt 0:02:29]} 33. cxd5 {[%emt 0:00:47]} Kf5 {[%emt 0:01:00]} 34. Kf3 {[%emt 0:00:02]} Rd7 {[%emt 0:09:04]} 35. Rd3 {[%emt 0:01:26]} g5 {[%emt 0:09:19]} 36. fxg5 {[%emt 0:00:21]} hxg5 {[%emt 0:00:05]} 37. Rd4 {[%emt 0:01:11]} Ke5 {[%emt 0:01:09]} 38. Ke3 {[%emt 0:00:30]} Rxd5 {[%emt 0:00:30]} 39. Rxd5+ {[%emt 0:00:39]} Kxd5 {[%emt 0:00:07]} 40. f4 {[%emt 0:00:33]} f6 {[%emt 0:01:08]} 41. Kf3 {[%emt 0:02:17]} Kd4 {[%emt 0:24:05]} 42. fxg5 {[%emt 0:00:45]} fxg5 {[%emt 0:03:51]} 43. Kg4 {[%emt 0:00:09]} Kd3 {[%emt 0:00:04]} 44. Kxg5 {[%emt 0:00:07]} Kc2 {[%emt 0:00:06]} 45. b4 {[%emt 0:01:15]} Kc3 {[%emt 0:04:25]} 46. b5 {[%emt 0:00:42]} a5 {[%emt 0:00:31]} 47. bxa6 {[%emt 0:01:56]} bxa6 {[%emt 0:00:04]} 48. h4 {[%emt 0:00:17]} a5 {[%emt 0:00:22]} 49. a4 {[%emt 0:04:18]} Kb4 {[%emt 0:00:07]} 50. h5 {[%emt 0:00:05]} Kxa4 {[%emt 0:00:04]} 51. h6 {[%emt 0:00:06]} Kb3 {[%emt 0:00:37]} 52. h7 {[%emt 0:00:06]} a4 {[%emt 0:00:30]} 53. h8=Q {[%emt 0:00:08]} Ka2 {[%emt 0:01:06]} 54. Qh2+ {[%emt 0:01:27]} Kb3 {[%emt 0:00:30]} 55. Qg3+ {[%emt 0:01:08]} Ka2 {[%emt 0:00:10]} 56. Qf2+ {[%emt 0:00:41]} Kb3 {[%emt 0:00:26]} 57. Qe3+ {[%emt 0:00:13]} Ka2 {[%emt 0:00:41]} 58. Qd2+ {[%emt 0:00:20]} Ka3 {[%emt 0:00:32]} 59. Qd1 {[%emt 0:00:37]} Kb4 {[%emt 0:00:13]} 60. Qa1 {[%emt 0:00:19]} Kb3 {[%emt 0:00:22]} 61. Kf4 {[%emt 0:01:12]} a3 {[%emt 0:00:19]} 62. Ke3 {[%emt 0:00:07]} a2 {[%emt 0:00:39]} 63. Kd3 {[%emt 0:00:16]} Ka3 {[%emt 0:00:05]} 64. Kc4 {[%emt 0:00:24]} 1-0

[Event "LEM Niedersachsen-A-Open 2025"]
[Site "Verden"]
[Date "2025.01.02"]
[Round "2.34"]
[White "Schulze, Tim"]
[Black "Monnerjahn, Lukas"]
[Result "1/2-1/2"]
[ECO "B30"]
[WhiteElo "1804"]
[BlackElo "1909"]
[Annotator "NA RC"]
[PlyCount "42"]
[EventDate "2024.12.27"]
[EventType "swiss"]
[EventCountry "GER"]
[SourceTitle "playchess.com"]
[Source "ChessBase"]
[SourceQuality "1"]
[TimeControl "40/5400+30:1800+30"]

1. e4 {[%emt 0:00:17]} c5 {[%emt 0:00:05]} 2. Nf3 {[%emt 0:00:14]} Nc6 {[%emt 0:00:05]} 3. Bb5 {[%emt 0:00:20]} Nf6 {[%emt 0:00:16]} 4. Bxc6 {[%emt 0:00:20]} dxc6 {[%emt 0:00:36]} 5. d3 {[%emt 0:00:10]} Qd6 {[%emt 0:01:20]} 6. O-O {[%emt 0:02:35]} e5 {[%emt 0:00:09]} 7. Nbd2 {[%emt 0:01:06]} Be7 {[%emt 0:01:16]} 8. Nc4 {[%emt 0:00:09]} Qc7 {[%emt 0:00:40]} 9. Ncxe5 {[%emt 0:00:32]} Be6 {[%emt 0:01:15]} 10. Nc4 {[%emt 0:11:07]} Nxe4 {[%emt 0:04:08]} 11. Re1 {[%emt 0:06:02]} Nf6 {[%emt 0:03:02]} 12. Ng5 {[%emt 0:08:30]} Bxc4 {[%emt 0:01:51]} 13. dxc4 {[%emt 0:00:16]} O-O {[%emt 0:00:27]} 14. Qf3 {[%emt 0:01:49]} Bd6 {[%emt 0:03:12]} 15. g3 {[%emt 0:01:59]} Rfe8 {[%emt 0:05:49]} 16. Bd2 {[%emt 0:00:28]} Rad8 {[%emt 0:05:05]} 17. Bc3 {[%emt 0:00:12]} Be5 {[%emt 0:02:02]} 18. Bxe5 {[%emt 0:07:30]} Rxe5 {[%emt 0:00:40]} 19. Ne4 {[%emt 0:01:37]} Nxe4 {[%emt 0:02:02]} 20. Rxe4 {[%emt 0:00:01]} Rde8 {[%emt 0:04:07]} 21. Rae1 {[%emt 0:00:32]} R8e6 {[%emt 0:03:26]} 1/2-1/2

[Event "LEM Niedersachsen-A-Open 2025"]
[Site "Verden"]
[Date "2025.01.02"]
[Round "2.35"]
[White "Stein, Luis"]
[Black "Holtwessels, Jan"]
[Result "0-1"]
[ECO "B00"]
[WhiteElo "1899"]
[BlackElo "1812"]
[Annotator "NA RC"]
[PlyCount "60"]
[EventDate "2024.12.27"]
[EventType "swiss"]
[EventCountry "GER"]
[SourceTitle "playchess.com"]
[Source "ChessBase"]
[SourceQuality "1"]
[TimeControl "40/5400+30:1800+30"]

1. e4 {[%emt 0:00:02]} Nc6 {[%emt 0:00:03]} 2. d4 {[%emt 0:00:10]} d5 {[%emt 0:00:03]} 3. e5 {[%emt 0:00:10]} Bf5 {[%emt 0:00:06]} 4. c3 {[%emt 0:01:54]} e6 {[%emt 0:00:24]} 5. f4 {[%emt 0:04:24]} f6 {[%emt 0:00:51]} 6. Nf3 {[%emt 0:00:11]} g5 {[%emt 0:01:16]} 7. exf6 {[%emt 0:10:30]} Qxf6 {[%emt 0:04:17]} 8. fxg5 {[%emt 0:06:17]} Qg7 {[%emt 0:00:49]} 9. Bb5 {[%emt 0:02:37]} Bd6 {[%emt 0:02:44]} 10. Qe2 {[%emt 0:10:47]} h6 {[%emt 0:03:58]} 11. Ne5 {[%emt 0:04:03]} Bxe5 {[%emt 0:00:38]} 12. Qxe5 {[%emt 0:00:13]} Qxe5+ {[%emt 0:05:08]} 13. dxe5 {[%emt 0:00:53]} Kd7 {[%emt 0:00:15]} 14. Be3 {[%emt 0:07:07]} a6 {[%emt 0:04:06]} 15. Bxc6+ {[%emt 0:00:22]} Kxc6 {[%emt 0:00:02]} 16. Nd2 {[%emt 0:00:33]} hxg5 {[%emt 0:02:37]} 17. Bxg5 {[%emt 0:00:29]} Nh6 {[%emt 0:00:35]} 18. Nf3 {[%emt 0:19:16]} Be4 {[%emt 0:03:35]} 19. O-O-O {[%emt 0:11:13]} Ng4 {[%emt 0:02:15]} 20. Nd4+ {[%emt 0:03:17]} Kd7 {[%emt 0:02:22]} 21. Rdf1 {[%emt 0:05:49]} Nxe5 {[%emt 0:03:11]} 22. Bf6 {[%emt 0:05:35]} Nd3+ {[%emt 0:01:24]} 23. Kd2 {[%emt 0:00:04]} Rh7 {[%emt 0:02:29]} 24. b4 {[%emt 0:03:30]} Rg8 {[%emt 0:04:31]} 25. Rhg1 {[%emt 0:02:51]} Rxh2 {[%emt 0:01:19]} 26. Kd1 {[%emt 0:00:30]} Rgxg2 {[%emt 0:01:57]} 27. Rxg2 {[%emt 0:00:09]} Rxg2 {[%emt 0:00:28]} 28. Bh4 {[%emt 0:00:34]} Bg6 {[%emt 0:01:12]} 29. Rf8 {[%emt 0:00:53]} Bh5+ {[%emt 0:00:15]} 30. Nf3 {[%emt 0:00:01]} Ne5 {[%emt 0:00:37]} 0-1

[Event "LEM Niedersachsen-A-Open 2025"]
[Site "Verden"]
[Date "2025.01.02"]
[Round "2.36"]
[White "Wilmink, Luca"]
[Black "Thieu, Nguyen Gia Bao"]
[Result "0-1"]
[ECO "B34"]
[WhiteElo "1792"]
[BlackElo "1898"]
[Annotator "NA RC"]
[PlyCount "116"]
[EventDate "2024.12.27"]
[EventType "swiss"]
[EventCountry "GER"]
[SourceTitle "playchess.com"]
[Source "ChessBase"]
[SourceQuality "1"]
[TimeControl "40/5400+30:1800+30"]

1. e4 {[%emt 0:00:04]} c5 {[%emt 0:00:07]} 2. Nf3 {[%emt 0:00:51]} Nc6 {[%emt 0:00:07]} 3. d4 {[%emt 0:00:35]} cxd4 {[%emt 0:00:09]} 4. Nxd4 {[%emt 0:00:34]} g6 {[%emt 0:00:08]} 5. Nc3 {[%emt 0:02:49]} Bg7 {[%emt 0:00:08]} 6. Be3 {[%emt 0:00:12]} Nf6 {[%emt 0:00:06]} 7. Be2 {[%emt 0:04:18]} O-O {[%emt 0:00:54]} 8. h4 {[%emt 0:01:37]} d5 {[%emt 0:05:07]} 9. Nxc6 {[%emt 0:05:14]} bxc6 {[%emt 0:00:08]} 10. e5 {[%emt 0:08:07]} Ne8 {[%emt 0:05:54]} 11. h5 {[%emt 0:05:41]} Bxe5 {[%emt 0:04:21]} 12. Bh6 {[%emt 0:00:59]} Bg7 {[%emt 0:09:00]} 13. Qd2 {[%emt 0:07:35]} Nf6 {[%emt 0:04:27]} 14. f3 {[%emt 0:08:18]} Qd6 {[%emt 0:06:41]} 15. O-O-O {[%emt 0:02:20]} Nxh5 {[%emt 0:05:38]} 16. g4 {[%emt 0:01:33]} Bxh6 {[%emt 0:01:11]} 17. Qxh6 {[%emt 0:01:50]} Qf4+ {[%emt 0:00:07]} 18. Qxf4 {[%emt 0:00:18]} Nxf4 {[%emt 0:00:07]} 19. Rh4 {[%emt 0:02:21]} Kg7 {[%emt 0:03:15]} 20. g5 {[%emt 0:01:50]} e5 {[%emt 0:00:33]} 21. Bd3 {[%emt 0:01:18]} Bf5 {[%emt 0:06:17]} 22. Ba6 {[%emt 0:03:31]} Rab8 {[%emt 0:01:05]} 23. Ne2 {[%emt 0:01:45]} Rb6 {[%emt 0:04:49]} 24. Nxf4 {[%emt 0:03:03]} Rxa6 {[%emt 0:00:25]} 25. Nd3 {[%emt 0:01:16]} Bxd3 {[%emt 0:00:29]} 26. cxd3 {[%emt 0:00:58]} Rxa2 {[%emt 0:01:00]} 27. Kb1 {[%emt 0:00:02]} Ra5 {[%emt 0:00:36]} 28. Rdh1 {[%emt 0:00:22]} Rh8 {[%emt 0:00:23]} 29. Re1 {[%emt 0:00:26]} h6 {[%emt 0:06:25]} 30. gxh6+ {[%emt 0:00:53]} Rxh6 {[%emt 0:00:07]} 31. Rxh6 {[%emt 0:00:07]} Kxh6 {[%emt 0:00:05]} 32. Rxe5 {[%emt 0:00:10]} Kg7 {[%emt 0:02:35]} 33. Re7 {[%emt 0:01:54]} Kf6 {[%emt 0:01:36]} 34. Rc7 {[%emt 0:00:30]} Ra6 {[%emt 0:00:53]} 35. Rb7 {[%emt 0:00:50]} g5 {[%emt 0:01:26]} 36. Rc7 {[%emt 0:01:21]} Ke6 {[%emt 0:01:15]} 37. Kc2 {[%emt 0:01:04]} f6 {[%emt 0:00:19]} 38. d4 {[%emt 0:04:29]} Kf5 {[%emt 0:01:25]} 39. Rf7 {[%emt 0:00:09]} Kg6 {[%emt 0:01:10]} 40. Rf8 {[%emt 0:01:08]} Ra4 {[%emt 0:03:29]} 41. Kd3 {[%emt 0:31:12]} Rb4 {[%emt 0:30:39]} 42. Kc3 {[%emt 0:01:01]} Rc4+ {[%emt 0:01:09]} 43. Kd3 {[%emt 0:00:23]} c5 {[%emt 0:00:13]} 44. dxc5 {[%emt 0:01:29]} Rxc5 {[%emt 0:00:07]} 45. Rd8 {[%emt 0:00:47]} Rb5 {[%emt 0:00:32]} 46. Kc3 {[%emt 0:02:04]} a5 {[%emt 0:00:42]} 47. b3 {[%emt 0:00:23]} Kf5 {[%emt 0:00:06]} 48. Rd6 {[%emt 0:00:46]} Ke5 {[%emt 0:00:10]} 49. Rc6 {[%emt 0:01:25]} d4+ {[%emt 0:00:37]} 50. Kc4 {[%emt 0:00:03]} Rb4+ {[%emt 0:00:15]} 51. Kc5 {[%emt 0:00:16]} Rxb3 {[%emt 0:00:17]} 52. Ra6 {[%emt 0:00:16]} Rxf3 {[%emt 0:00:26]} 53. Rxa5 {[%emt 0:00:09]} Rc3+ {[%emt 0:00:26]} 54. Kb4+ {[%emt 0:00:26]} Ke4 {[%emt 0:00:09]} 55. Ra6 {[%emt 0:00:22]} f5 {[%emt 0:00:13]} 56. Rf6 {[%emt 0:00:19]} g4 {[%emt 0:00:15]} 57. Re6+ {[%emt 0:00:18]} Kf3 {[%emt 0:00:30]} 58. Rd6 {[%emt 0:00:20]} Re3 {[%emt 0:00:32]} 0-1